[Event "*** Titled Tuesday Blitz"]
[Site "Chess.com"]
[Date "2018.07.03"]
[Round "7"]
[White "Korchmar_Vasiliy"]
[Black "kuli4ik"]
[Result "1-0"]
[WhiteElo "2717"]
[BlackElo "2755"]
[TimeControl "180+2"]
[EndTime "14:33:32 PDT"]
[Termination "Korchmar_Vasiliy won by resignation"]

1. d4 {[%clk 0:03:01.1]} 1... e6 {[%clk 0:03:00.6]} 2. Bf4 {[%clk 0:03:01]} 2...
c5 {[%clk 0:03:00.1]} 3. e3 {[%clk 0:03:02.4]} 3... Qb6 {[%clk 0:02:58.4]} 4.
Nc3 {[%clk 0:02:59.4]} 4... a6 {[%clk 0:02:59.1]} 5. Rb1 {[%clk 0:02:58.7]} 5...
Nf6 {[%clk 0:02:50.4]} 6. Nf3 {[%clk 0:02:49.5]} 6... cxd4 {[%clk 0:02:48]} 7.
exd4 {[%clk 0:02:50.4]} 7... d6 {[%clk 0:02:49.2]} 8. Bd3 {[%clk 0:02:49.3]}
8... Be7 {[%clk 0:02:49.9]} 9. O-O {[%clk 0:02:50.1]} 9... O-O {[%clk
0:02:49.3]} 10. Re1 {[%clk 0:02:48.3]} 10... Re8 {[%clk 0:02:49.1]} 11. h3
{[%clk 0:02:43.3]} 11... Nbd7 {[%clk 0:02:50.1]} 12. Ng5 {[%clk 0:02:34.7]}
12... Nf8 {[%clk 0:02:45.1]} 13. d5 {[%clk 0:01:44.9]} 13... e5 {[%clk
0:02:42.6]} 14. Be3 {[%clk 0:01:44]} 14... Qc7 {[%clk 0:02:42.8]} 15. f4 {[%clk
0:01:39.7]} 15... exf4 {[%clk 0:02:34]} 16. Bxf4 {[%clk 0:01:41.6]} 16... Ng6
{[%clk 0:02:35.2]} 17. Bxg6 {[%clk 0:01:35.7]} 17... hxg6 {[%clk 0:02:35.7]} 18.
Qf3 {[%clk 0:01:31.1]} 18... Bf5 {[%clk 0:02:33.8]} 19. Re2 {[%clk 0:01:26.5]}
19... Bf8 {[%clk 0:02:00]} 20. Be3 {[%clk 0:01:04]} 20... b5 {[%clk 0:01:52.2]}
21. a3 {[%clk 0:01:02.8]} 21... Nd7 {[%clk 0:01:43.4]} 22. g4 {[%clk 0:00:53.5]}
22... Ne5 {[%clk 0:01:38]} 23. Qf2 {[%clk 0:00:54.7]} 23... f6 {[%clk
0:01:33.9]} 24. gxf5 {[%clk 0:00:51.7]} 24... fxg5 {[%clk 0:01:34.9]} 25. fxg6
{[%clk 0:00:53.2]} 25... Qd7 {[%clk 0:01:02.6]} 26. Bxg5 {[%clk 0:00:47.6]}
26... Qxh3 {[%clk 0:01:00.4]} 27. Re3 {[%clk 0:00:43.5]} 27... Qh5 {[%clk
0:00:55.2]} 28. Qg2 {[%clk 0:00:38.3]} 28... Ng4 {[%clk 0:00:35.8]} 29. Rg3
{[%clk 0:00:35.8]} 29... Qxg5 {[%clk 0:00:17.6]} 30. Rxg4 {[%clk 0:00:37.1]}
30... Qe3+ {[%clk 0:00:19.3]} 31. Kh1 {[%clk 0:00:28.8]} 31... Qh6+ {[%clk
0:00:19.7]} 32. Kg1 {[%clk 0:00:28.6]} 32... Qe3+ {[%clk 0:00:20.5]} 33. Qf2
{[%clk 0:00:29.1]} 33... Qxf2+ {[%clk 0:00:21.6]} 34. Kxf2 {[%clk 0:00:31]}
34... Be7 {[%clk 0:00:22.9]} 35. Ne4 {[%clk 0:00:29.4]} 35... Rac8 {[%clk
0:00:22.1]} 36. c3 {[%clk 0:00:29.1]} 36... Rc4 {[%clk 0:00:22]} 37. b3 {[%clk
0:00:18.4]} 37... Rcc8 {[%clk 0:00:18.3]} 38. Rh1 {[%clk 0:00:19.4]} 38... Rf8+
{[%clk 0:00:19]} 39. Ke3 {[%clk 0:00:17.4]} 39... Rf5 {[%clk 0:00:15.9]} 40. Rg2
{[%clk 0:00:13.4]} 40... Re5 {[%clk 0:00:12.8]} 41. Kd4 {[%clk 0:00:05.3]} 41...
Rxc3 {[%clk 0:00:13.4]} 42. Nxc3 {[%clk 0:00:05.6]} 42... Bf6 {[%clk 0:00:15]}
43. Kd3 {[%clk 0:00:06.6]} 43... Rf5 {[%clk 0:00:13.6]} 44. Rg3 {[%clk
0:00:07.1]} 44... Be5 {[%clk 0:00:12]} 45. Rgh3 {[%clk 0:00:08.4]} 45... Kf8
{[%clk 0:00:13.2]} 46. Ne4 {[%clk 0:00:08.5]} 46... Ke7 {[%clk 0:00:13.2]} 47.
Rh7 {[%clk 0:00:05.5]} 47... Bb2 {[%clk 0:00:13.8]} 48. a4 {[%clk 0:00:05.9]}
48... Rxd5+ {[%clk 0:00:13.1]} 49. Kc2 {[%clk 0:00:05.3]} 49... Be5 {[%clk
0:00:15]} 50. axb5 {[%clk 0:00:06.4]} 50... axb5 {[%clk 0:00:16.9]} 51. Rf1
{[%clk 0:00:07.7]} 51... Rd4 {[%clk 0:00:17.5]} 52. Rf7+ {[%clk 0:00:08.8]}
52... Ke6 {[%clk 0:00:18.8]} 53. Ng5+ {[%clk 0:00:09.9]} 53... Kd5 {[%clk
0:00:20.1]} 54. Nf3 {[%clk 0:00:11.4]} 54... Rg4 {[%clk 0:00:19.7]} 55. Nxe5
{[%clk 0:00:12.8]} 55... dxe5 {[%clk 0:00:21.6]} 56. Rhxg7 {[%clk 0:00:14.1]}
56... Rg2+ {[%clk 0:00:23.5]} 57. Kd1 {[%clk 0:00:14.7]} 57... e4 {[%clk
0:00:25.4]} 58. Rd7+ {[%clk 0:00:15.7]} 58... Ke5 {[%clk 0:00:26.9]} 59. Rge7+
{[%clk 0:00:16.8]} 59... Kf4 {[%clk 0:00:28.5]} 60. g7 {[%clk 0:00:17.8]} 60...
Ke3 {[%clk 0:00:30.4]} 61. Re8 {[%clk 0:00:15.1]} 61... Rg1+ {[%clk 0:00:25.4]}
62. Kc2 {[%clk 0:00:15.7]} 62... Rg2+ {[%clk 0:00:26.3]} 63. Kc3 {[%clk
0:00:17.1]} 63... Rxg7 {[%clk 0:00:26.1]} 64. Rxg7 {[%clk 0:00:17.4]} 1-0

[Event "*** Titled Tuesday Blitz"]
[Site "Chess.com"]
[Date "2018.07.03"]
[Round "7"]
[White "Yurovskykh_Oleksandr"]
[Black "BasilSmash"]
[Result "0-1"]
[WhiteElo "2400"]
[BlackElo "2437"]
[TimeControl "180+2"]
[EndTime "14:33:51 PDT"]
[Termination "BasilSmash won on time"]

1. d4 {[%clk 0:03:01]} 1... d5 {[%clk 0:03:00.2]} 2. Bg5 {[%clk 0:02:57.3]} 2...
h6 {[%clk 0:02:56.6]} 3. Bh4 {[%clk 0:02:58.2]} 3... c6 {[%clk 0:02:52.9]} 4.
Nf3 {[%clk 0:02:57.1]} 4... Bf5 {[%clk 0:02:52.2]} 5. e3 {[%clk 0:02:57.1]} 5...
Nd7 {[%clk 0:02:51]} 6. Bd3 {[%clk 0:02:36.3]} 6... Bxd3 {[%clk 0:02:49.1]} 7.
Qxd3 {[%clk 0:02:38.2]} 7... Ngf6 {[%clk 0:02:50]} 8. O-O {[%clk 0:02:37.6]}
8... e6 {[%clk 0:02:47.1]} 9. c4 {[%clk 0:02:38.9]} 9... Be7 {[%clk 0:02:47]}
10. Nc3 {[%clk 0:02:40]} 10... O-O {[%clk 0:02:47.5]} 11. Rad1 {[%clk
0:02:23.8]} 11... Re8 {[%clk 0:02:41.4]} 12. e4 {[%clk 0:02:21.9]} 12... Nxe4
{[%clk 0:02:41.3]} 13. Bxe7 {[%clk 0:02:22.1]} 13... Qxe7 {[%clk 0:02:40.4]} 14.
Nxe4 {[%clk 0:02:22.7]} 14... dxe4 {[%clk 0:02:42.3]} 15. Qxe4 {[%clk
0:02:23.4]} 15... Qb4 {[%clk 0:02:41.5]} 16. Qc2 {[%clk 0:02:08.8]} 16... Rad8
{[%clk 0:02:41.9]} 17. Rd3 {[%clk 0:02:08.2]} 17... a5 {[%clk 0:02:21.4]} 18.
Rfd1 {[%clk 0:01:51.3]} 18... a4 {[%clk 0:02:20.7]} 19. Qc3 {[%clk 0:01:51.1]}
19... Qxc3 {[%clk 0:02:17.5]} 20. Rxc3 {[%clk 0:01:50.8]} 20... Kf8 {[%clk
0:02:17.8]} 21. Kf1 {[%clk 0:01:50.9]} 21... Ke7 {[%clk 0:02:18.1]} 22. Ra3
{[%clk 0:01:49.4]} 22... b5 {[%clk 0:02:15.9]} 23. cxb5 {[%clk 0:01:45.4]} 23...
cxb5 {[%clk 0:02:17.8]} 24. Rc3 {[%clk 0:01:31.9]} 24... Rc8 {[%clk 0:02:15.2]}
25. Rdc1 {[%clk 0:01:32.3]} 25... Rxc3 {[%clk 0:02:15.5]} 26. Rxc3 {[%clk
0:01:33.9]} 26... Kd6 {[%clk 0:02:15.8]} 27. Ke2 {[%clk 0:01:34.6]} 27... Rb8
{[%clk 0:02:12.4]} 28. Kd3 {[%clk 0:01:34.5]} 28... g5 {[%clk 0:02:12.7]} 29.
Nd2 {[%clk 0:01:33.8]} 29... f5 {[%clk 0:02:11.2]} 30. Rc1 {[%clk 0:01:27.2]}
30... g4 {[%clk 0:02:08.2]} 31. Nf1 {[%clk 0:01:25.4]} 31... Nf6 {[%clk
0:02:04.3]} 32. f3 {[%clk 0:01:20.3]} 32... h5 {[%clk 0:02:03.5]} 33. Ng3 {[%clk
0:01:17.8]} 33... h4 {[%clk 0:02:01]} 34. Ne2 {[%clk 0:01:18.7]} 34... gxf3
{[%clk 0:01:57]} 35. gxf3 {[%clk 0:01:19.7]} 35... Nd5 {[%clk 0:01:55.1]} 36. a3
{[%clk 0:01:18.4]} 36... Rg8 {[%clk 0:01:53.8]} 37. Rg1 {[%clk 0:01:17.1]} 37...
Nf4+ {[%clk 0:01:45.6]} 38. Ke3 {[%clk 0:01:04.8]} 38... Nd5+ {[%clk 0:01:42.5]}
39. Kd3 {[%clk 0:01:05.3]} 39... Nf4+ {[%clk 0:01:37.6]} 40. Ke3 {[%clk
0:01:06.3]} 40... Ng2+ {[%clk 0:01:37.6]} 41. Kf2 {[%clk 0:01:06.9]} 41... h3
{[%clk 0:01:37.7]} 42. Nf4 {[%clk 0:01:04.9]} 42... Rc8 {[%clk 0:01:32.6]} 43.
Nxg2 {[%clk 0:01:05.8]} 43... hxg2 {[%clk 0:01:24.9]} 44. Rxg2 {[%clk
0:01:06.4]} 44... Kd5 {[%clk 0:01:18.1]} 45. Ke3 {[%clk 0:01:02.3]} 45... Rc1
{[%clk 0:01:18.1]} 46. h4 {[%clk 0:00:52.8]} 46... Rh1 {[%clk 0:01:13.7]} 47.
Rc2 {[%clk 0:00:53.3]} 47... f4+ {[%clk 0:01:04.4]} 48. Kd3 {[%clk 0:00:42]}
48... Rd1+ {[%clk 0:01:00.4]} 49. Rd2 {[%clk 0:00:29.1]} 49... Rf1 {[%clk
0:00:50.9]} 50. Rh2 {[%clk 0:00:21.2]} 50... Rxf3+ {[%clk 0:00:49.3]} 51. Kd2
{[%clk 0:00:22.4]} 51... Kxd4 {[%clk 0:00:48.6]} 52. h5 {[%clk 0:00:23.8]} 52...
Rg3 {[%clk 0:00:47]} 53. h6 {[%clk 0:00:24.9]} 53... Rg8 {[%clk 0:00:47.9]} 54.
h7 {[%clk 0:00:26.4]} 54... Rh8 {[%clk 0:00:49.1]} 55. Ke2 {[%clk 0:00:27.5]}
55... Ke4 {[%clk 0:00:49.6]} 56. Rh6 {[%clk 0:00:27.2]} 56... e5 {[%clk
0:00:48.6]} 57. Kf2 {[%clk 0:00:26.8]} 57... Kf5 {[%clk 0:00:48.9]} 58. Rh5+
{[%clk 0:00:28.2]} 58... Kg4 {[%clk 0:00:44.9]} 59. Rxe5 {[%clk 0:00:28]} 59...
Rxh7 {[%clk 0:00:45.7]} 60. Rxb5 {[%clk 0:00:29.4]} 60... Rh2+ {[%clk
0:00:46.6]} 61. Kg1 {[%clk 0:00:18.3]} 61... Rc2 {[%clk 0:00:46.6]} 62. Rb8
{[%clk 0:00:13.2]} 62... Kg3 {[%clk 0:00:45.1]} 63. Rg8+ {[%clk 0:00:13]} 63...
Kf3 {[%clk 0:00:45.9]} 64. Rb8 {[%clk 0:00:14.1]} 64... Rc1+ {[%clk 0:00:41.3]}
65. Kh2 {[%clk 0:00:15.2]} 65... Rb1 {[%clk 0:00:41.5]} 66. Rb4 {[%clk
0:00:14.6]} 66... Ke3 {[%clk 0:00:37.9]} 67. Rxa4 {[%clk 0:00:13]} 67... Rxb2+
{[%clk 0:00:38.4]} 68. Kg1 {[%clk 0:00:13.7]} 68... f3 {[%clk 0:00:37.8]} 69.
Ra8 {[%clk 0:00:11.5]} 69... Rb1+ {[%clk 0:00:38.6]} 70. Kh2 {[%clk 0:00:12.6]}
70... f2 {[%clk 0:00:39.8]} 71. Re8+ {[%clk 0:00:14.2]} 71... Kd4 {[%clk
0:00:40.5]} 72. Rd8+ {[%clk 0:00:13.7]} 72... Kc5 {[%clk 0:00:41.4]} 73. Rc8+
{[%clk 0:00:14.9]} 73... Kd6 {[%clk 0:00:42.4]} 0-1

[Event "*** Titled Tuesday Blitz"]
[Site "Chess.com"]
[Date "2018.07.03"]
[Round "7"]
[White "pouya21"]
[Black "champ2005"]
[Result "1-0"]
[WhiteElo "2658"]
[BlackElo "2702"]
[TimeControl "180+2"]
[EndTime "14:34:04 PDT"]
[Termination "pouya21 won by resignation"]

1. e4 {[%clk 0:03:01.9]} 1... c6 {[%clk 0:03:01.2]} 2. d4 {[%clk 0:02:59.7]}
2... d5 {[%clk 0:03:02.3]} 3. e5 {[%clk 0:03:01]} 3... Bf5 {[%clk 0:03:03.1]} 4.
Nc3 {[%clk 0:03:02.5]} 4... e6 {[%clk 0:03:04]} 5. g4 {[%clk 0:03:03.7]} 5...
Bg6 {[%clk 0:03:04.7]} 6. Nge2 {[%clk 0:03:05.3]} 6... c5 {[%clk 0:02:59.9]} 7.
h4 {[%clk 0:03:05.8]} 7... h5 {[%clk 0:03:00.4]} 8. Nf4 {[%clk 0:03:06.5]} 8...
Bh7 {[%clk 0:03:01.6]} 9. g5 {[%clk 0:03:07.2]} 9... cxd4 {[%clk 0:02:59.7]} 10.
Nb5 {[%clk 0:03:07.9]} 10... Be4 {[%clk 0:02:56.3]} 11. f3 {[%clk 0:03:08.7]}
11... Bh7 {[%clk 0:02:57.1]} 12. Nxh5 {[%clk 0:02:55.6]} 12... Nc6 {[%clk
0:02:55.6]} 13. Bf4 {[%clk 0:02:50.7]} 13... Nge7 {[%clk 0:02:52.3]} 14. Nd6+
{[%clk 0:02:47.7]} 14... Kd7 {[%clk 0:02:52.9]} 15. Nxf7 {[%clk 0:01:55.9]}
15... Qe8 {[%clk 0:02:53.2]} 16. Nxh8 {[%clk 0:01:57.2]} 16... Qxh5 {[%clk
0:02:54]} 17. g6 {[%clk 0:01:50]} 17... Bxg6 {[%clk 0:02:48.4]} 18. Nxg6 {[%clk
0:01:50.5]} 18... Nxg6 {[%clk 0:02:49.5]} 19. Bg5 {[%clk 0:01:50.6]} 19... Ngxe5
{[%clk 0:02:49.4]} 20. f4 {[%clk 0:01:41]} 20... Qxd1+ {[%clk 0:02:39.9]} 21.
Rxd1 {[%clk 0:01:36.7]} 21... Bb4+ {[%clk 0:02:39.3]} 22. Ke2 {[%clk 0:01:33.9]}
22... Ng4 {[%clk 0:02:40.2]} 23. c3 {[%clk 0:01:30.3]} 23... dxc3 {[%clk
0:02:34.1]} 24. bxc3 {[%clk 0:01:26.8]} 24... Bxc3 {[%clk 0:02:27.9]} 25. Bh3
{[%clk 0:01:28.2]} 25... Nf6 {[%clk 0:02:23.1]} 26. Bxf6 {[%clk 0:01:29.2]}
26... Bxf6 {[%clk 0:02:23.5]} 27. Rxd5+ {[%clk 0:01:30.2]} 27... Ke7 {[%clk
0:02:24.8]} 28. Rd3 {[%clk 0:01:29.7]} 28... Nd4+ {[%clk 0:02:15.1]} 29. Ke3
{[%clk 0:01:27.7]} 29... Nc2+ {[%clk 0:02:14.1]} 30. Kf3 {[%clk 0:01:23.9]}
30... Nd4+ {[%clk 0:02:09.1]} 31. Ke4 {[%clk 0:01:24.3]} 31... Nb5 {[%clk
0:01:57.9]} 32. Rc1 {[%clk 0:01:00]} 32... Rh8 {[%clk 0:01:43.4]} 33. Kf3 {[%clk
0:00:43.5]} 33... Rxh4 {[%clk 0:01:39.1]} 34. Kg3 {[%clk 0:00:44.7]} 34... Rh8
{[%clk 0:01:34]} 35. a4 {[%clk 0:00:41.2]} 35... Nd4 {[%clk 0:01:34.6]} 36. Rc7+
{[%clk 0:00:30.3]} 36... Kd6 {[%clk 0:01:35.6]} 37. Rxb7 {[%clk 0:00:31.5]}
37... a5 {[%clk 0:01:14.8]} 38. Bg4 {[%clk 0:00:27.4]} 38... e5 {[%clk
0:01:09.4]} 39. Ra7 {[%clk 0:00:25.1]} 39... exf4+ {[%clk 0:00:48.9]} 40. Kxf4
{[%clk 0:00:25.6]} 40... Kc5 {[%clk 0:00:49]} 41. Rxa5+ {[%clk 0:00:25.2]} 41...
Kb4 {[%clk 0:00:50.1]} 42. Ra6 {[%clk 0:00:21.5]} 42... Re8 {[%clk 0:00:39.3]}
43. Rxf6 {[%clk 0:00:21.4]} 43... gxf6 {[%clk 0:00:34.7]} 44. Rxd4+ {[%clk
0:00:22.8]} 44... Kc3 {[%clk 0:00:35.7]} 45. Re4 {[%clk 0:00:24.1]} 45... Ra8
{[%clk 0:00:32.4]} 46. Bd7 {[%clk 0:00:24.8]} 46... Ra7 {[%clk 0:00:33.6]} 47.
Bb5 {[%clk 0:00:25.7]} 47... Kb3 {[%clk 0:00:33.6]} 48. Kf5 {[%clk 0:00:26.8]}
48... Kc3 {[%clk 0:00:34.4]} 49. Re6 {[%clk 0:00:27.7]} 49... Kd4 {[%clk
0:00:34.4]} 50. Ra6 {[%clk 0:00:27.6]} 50... Rh7 {[%clk 0:00:33.4]} 51. Rxf6
{[%clk 0:00:28.6]} 51... Kc5 {[%clk 0:00:34.3]} 52. Rc6+ {[%clk 0:00:29.3]}
52... Kb4 {[%clk 0:00:35.3]} 53. Rc4+ {[%clk 0:00:30.3]} 53... Ka5 {[%clk
0:00:36.4]} 54. Ke4 {[%clk 0:00:31.2]} 54... Re7+ {[%clk 0:00:36.8]} 55. Kd3
{[%clk 0:00:32.1]} 55... Rh7 {[%clk 0:00:36.6]} 56. Kc2 {[%clk 0:00:33.1]} 56...
Rh2+ {[%clk 0:00:37.3]} 57. Kb3 {[%clk 0:00:34.1]} 57... Rh3+ {[%clk 0:00:38.3]}
58. Rc3 {[%clk 0:00:35.1]} 58... Rh4 {[%clk 0:00:39.1]} 59. Bc4 {[%clk
0:00:35.3]} 59... Rh1 {[%clk 0:00:33.1]} 60. Rd3 {[%clk 0:00:35.6]} 60... Rb1+
{[%clk 0:00:30.1]} 61. Ka3 {[%clk 0:00:36]} 61... Ra1+ {[%clk 0:00:23.6]} 62.
Ba2 {[%clk 0:00:36.3]} 62... Rh1 {[%clk 0:00:24.1]} 63. Rd5+ {[%clk 0:00:37.2]}
63... Kb6 {[%clk 0:00:25.2]} 64. Bb3 {[%clk 0:00:37.2]} 64... Rh4 {[%clk
0:00:25.4]} 65. Rb5+ {[%clk 0:00:37.5]} 65... Ka6 {[%clk 0:00:26.7]} 66. Rc5
{[%clk 0:00:38.8]} 66... Kb6 {[%clk 0:00:27.8]} 67. Rc4 {[%clk 0:00:39.8]} 67...
Rh5 {[%clk 0:00:28.4]} 68. Kb4 {[%clk 0:00:40.8]} 68... Rh8 {[%clk 0:00:29]} 69.
Re4 {[%clk 0:00:41.7]} 69... Ka7 {[%clk 0:00:29.7]} 70. Bc4 {[%clk 0:00:41]}
70... Rh1 {[%clk 0:00:29.1]} 71. a5 {[%clk 0:00:41]} 71... Rb1+ {[%clk
0:00:29.4]} 72. Kc5 {[%clk 0:00:41.4]} 72... Rb7 {[%clk 0:00:30.9]} 73. Re6
{[%clk 0:00:39.7]} 73... Rc7+ {[%clk 0:00:31.7]} 74. Rc6 {[%clk 0:00:40.8]}
74... Rh7 {[%clk 0:00:32.4]} 75. Bd5 {[%clk 0:00:39.3]} 75... Rg7 {[%clk
0:00:33.6]} 76. Rc8 {[%clk 0:00:38.6]} 76... Ka6 {[%clk 0:00:23.6]} 77. Ra8+
{[%clk 0:00:38.2]} 77... Ra7 {[%clk 0:00:24.2]} 78. Rxa7+ {[%clk 0:00:38.7]}
78... Kxa7 {[%clk 0:00:26.1]} 79. Kb5 {[%clk 0:00:39.6]} 79... Kb8 {[%clk
0:00:26.3]} 80. Kb6 {[%clk 0:00:40.8]} 1-0

[Event "*** Titled Tuesday Blitz"]
[Site "Chess.com"]
[Date "2018.07.03"]
[Round "7"]
[White "Bauxi435"]
[Black "ahmadzada13"]
[Result "1/2-1/2"]
[WhiteElo "2426"]
[BlackElo "2494"]
[TimeControl "180+2"]
[EndTime "14:34:06 PDT"]
[Termination "Game drawn by agreement"]

1. d4 {[%clk 0:03:01.9]} 1... Nf6 {[%clk 0:03:00.2]} 2. c4 {[%clk 0:03:03.2]}
2... g6 {[%clk 0:03:01.3]} 3. Nc3 {[%clk 0:03:04.7]} 3... Bg7 {[%clk 0:03:02.5]}
4. e4 {[%clk 0:03:05.9]} 4... d6 {[%clk 0:03:03.5]} 5. Be2 {[%clk 0:03:07.2]}
5... O-O {[%clk 0:03:04.5]} 6. Be3 {[%clk 0:03:08.6]} 6... Nbd7 {[%clk
0:03:00.8]} 7. Qd2 {[%clk 0:03:07.5]} 7... e5 {[%clk 0:02:59.9]} 8. d5 {[%clk
0:03:08.7]} 8... Nc5 {[%clk 0:02:56]} 9. f3 {[%clk 0:03:09.8]} 9... c6 {[%clk
0:02:45.9]} 10. dxc6 {[%clk 0:03:06.7]} 10... bxc6 {[%clk 0:02:43.9]} 11. O-O-O
{[%clk 0:02:58.9]} 11... Qb6 {[%clk 0:02:01.5]} 12. Qxd6 {[%clk 0:02:54]} 12...
Nb3+ {[%clk 0:02:00.5]} 13. axb3 {[%clk 0:02:48.4]} 13... Qxe3+ {[%clk
0:02:00.6]} 14. Kc2 {[%clk 0:02:41.8]} 14... Be6 {[%clk 0:01:44.6]} 15. Nh3
{[%clk 0:02:19.9]} 15... Rab8 {[%clk 0:01:14.8]} 16. Rd3 {[%clk 0:02:02.5]}
16... Qb6 {[%clk 0:00:53]} 17. Na4 {[%clk 0:02:03.3]} 17... Qa5 {[%clk
0:00:49.9]} 18. Qc5 {[%clk 0:01:49.3]} 18... Qc7 {[%clk 0:00:47.8]} 19. Ng5
{[%clk 0:01:36.3]} 19... Bc8 {[%clk 0:00:20.1]} 20. Rhd1 {[%clk 0:01:34.3]}
20... h6 {[%clk 0:00:14]} 21. Nh3 {[%clk 0:01:30.1]} 21... Re8 {[%clk
0:00:10.5]} 22. Qd6 {[%clk 0:01:15.6]} 22... Qb7 {[%clk 0:00:09.4]} 23. Rc3
{[%clk 0:00:50.7]} 23... Bxh3 {[%clk 0:00:06.3]} 24. gxh3 {[%clk 0:00:50.8]}
24... Nh5 {[%clk 0:00:06.4]} 25. Nc5 {[%clk 0:00:48.9]} 25... Qb4 {[%clk
0:00:03.1]} 26. Nd7 {[%clk 0:00:46]} 26... Qxd6 {[%clk 0:00:03.9]} 27. Rxd6
{[%clk 0:00:46.9]} 27... Rbd8 {[%clk 0:00:05.5]} 28. c5 {[%clk 0:00:40.2]} 28...
Nf4 {[%clk 0:00:06.4]} 29. Bf1 {[%clk 0:00:40.6]} 29... Kh8 {[%clk 0:00:03.6]}
30. b4 {[%clk 0:00:28.1]} 30... Re7 {[%clk 0:00:03.6]} 31. Nb6 {[%clk
0:00:22.4]} 31... Rxd6 {[%clk 0:00:03.9]} 32. cxd6 {[%clk 0:00:24.3]} 32... Re8
{[%clk 0:00:04.4]} 33. Nc4 {[%clk 0:00:20.6]} 33... Rd8 {[%clk 0:00:04.7]} 34.
Re3 {[%clk 0:00:21.7]} 34... Bf8 {[%clk 0:00:05.2]} 35. Re1 {[%clk 0:00:23.2]}
35... Bxd6 {[%clk 0:00:06.2]} 36. Rd1 {[%clk 0:00:24.8]} 36... Bc7 {[%clk
0:00:07.6]} 37. Rxd8+ {[%clk 0:00:26]} 37... Bxd8 {[%clk 0:00:09.2]} 38. Nxe5
{[%clk 0:00:27.9]} 38... Kg7 {[%clk 0:00:08.9]} 39. Nxc6 {[%clk 0:00:28.9]}
39... Bb6 {[%clk 0:00:09.8]} 40. Na5 {[%clk 0:00:27.2]} 40... Bg1 {[%clk
0:00:09.7]} 41. Nc4 {[%clk 0:00:28.2]} 41... Bxh2 {[%clk 0:00:10.6]} 42. b5
{[%clk 0:00:29.5]} 42... Bg1 {[%clk 0:00:11.5]} 43. Kc3 {[%clk 0:00:30.2]} 43...
Kf6 {[%clk 0:00:12.6]} 44. Na5 {[%clk 0:00:28.5]} 44... Kg5 {[%clk 0:00:13.5]}
45. Nc6 {[%clk 0:00:29.9]} 45... Kh4 {[%clk 0:00:13.5]} 46. Ne5 {[%clk
0:00:31.1]} 46... Nxh3 {[%clk 0:00:13.2]} 47. Nxf7 {[%clk 0:00:32.3]} 47... Nf4
{[%clk 0:00:14.3]} 48. Nxh6 {[%clk 0:00:33.3]} 48... Kg3 {[%clk 0:00:14.2]} 49.
e5 {[%clk 0:00:33]} 49... Kxf3 {[%clk 0:00:14.2]} 50. Bc4 {[%clk 0:00:34.9]}
50... Bc5 {[%clk 0:00:11.9]} 51. e6 {[%clk 0:00:36]} 51... Ke4 {[%clk
0:00:09.3]} 52. Nf7 {[%clk 0:00:36.2]} 52... Nd5+ {[%clk 0:00:08.1]} 53. Kd2
{[%clk 0:00:32]} 53... Ne7 {[%clk 0:00:06]} 54. Nd8 {[%clk 0:00:30.1]} 54... Ke5
{[%clk 0:00:03.4]} 55. Bd3 {[%clk 0:00:27.7]} 55... g5 {[%clk 0:00:03.2]} 56.
Ke2 {[%clk 0:00:28.5]} 56... Kd6 {[%clk 0:00:04.3]} 57. Kf3 {[%clk 0:00:28.9]}
57... Kc7 {[%clk 0:00:04.9]} 58. Nf7 {[%clk 0:00:29.6]} 58... Bd4 {[%clk
0:00:06.1]} 59. b3 {[%clk 0:00:29.7]} 59... Bf6 {[%clk 0:00:06.2]} 60. Ke4
{[%clk 0:00:31.1]} 60... Kb6 {[%clk 0:00:04.9]} 61. Bc4 {[%clk 0:00:32.3]} 61...
Kc5 {[%clk 0:00:05.9]} 62. Nh6 {[%clk 0:00:32.3]} 62... Kd6 {[%clk 0:00:06.7]}
63. Ng4 {[%clk 0:00:33.6]} 63... Bg7 {[%clk 0:00:07.5]} 64. Ne3 {[%clk
0:00:34.9]} 64... Kc7 {[%clk 0:00:07.5]} 65. Nf5 {[%clk 0:00:35.8]} 65... Nxf5
{[%clk 0:00:07.8]} 66. Kxf5 {[%clk 0:00:37.7]} 66... Bf8 {[%clk 0:00:09.3]} 67.
Kxg5 {[%clk 0:00:38.7]} 67... Be7+ {[%clk 0:00:10.6]} 68. Kg6 {[%clk 0:00:39.8]}
68... Kd8 {[%clk 0:00:12.2]} 69. Kf7 {[%clk 0:00:41.1]} 69... Bb4 {[%clk
0:00:13.9]} 70. Bd5 {[%clk 0:00:42.3]} 70... Be7 {[%clk 0:00:13.9]} 71. Bc6
{[%clk 0:00:43.8]} 71... Bb4 {[%clk 0:00:14.6]} 72. Kf6 {[%clk 0:00:45.7]} 72...
Be7+ {[%clk 0:00:15.4]} 73. Ke5 {[%clk 0:00:47]} 73... Kc7 {[%clk 0:00:16.5]}
74. Kd5 {[%clk 0:00:48.5]} 74... Kb6 {[%clk 0:00:17.5]} 75. Be8 {[%clk
0:00:49.3]} 75... Kc7 {[%clk 0:00:18.8]} 76. Kc4 {[%clk 0:00:49.6]} 76... Kb6
{[%clk 0:00:20.3]} 77. b4 {[%clk 0:00:51]} 77... Kc7 {[%clk 0:00:21.2]} 78. Kb3
{[%clk 0:00:52.1]} 78... Kb6 {[%clk 0:00:22.1]} 79. Ka4 {[%clk 0:00:53.5]} 79...
Bf8 {[%clk 0:00:23.7]} 80. Kb3 {[%clk 0:00:54.3]} 80... Be7 {[%clk 0:00:25.3]}
81. Kc4 {[%clk 0:00:55.8]} 81... Bf8 {[%clk 0:00:24.6]} 82. Bh5 {[%clk
0:00:56.9]} 82... Be7 {[%clk 0:00:25.5]} 83. Be2 {[%clk 0:00:58.4]} 83... Kc7
{[%clk 0:00:26.8]} 84. Kd5 {[%clk 0:00:59]} 84... Bxb4 {[%clk 0:00:26.4]} 85.
Kc4 {[%clk 0:00:57.9]} 85... Be7 {[%clk 0:00:27.1]} 86. Kb3 {[%clk 0:00:59.3]}
86... Kd6 {[%clk 0:00:28]} 87. Kc4 {[%clk 0:01:00.9]} 87... Kxe6 {[%clk
0:00:28.8]} 1/2-1/2

[Event "*** Titled Tuesday Blitz"]
[Site "Chess.com"]
[Date "2018.07.03"]
[Round "8"]
[White "ChessMavenYeti"]
[Black "Sordis"]
[Result "1-0"]
[WhiteElo "2208"]
[BlackElo "2265"]
[TimeControl "180+2"]
[EndTime "14:39:52 PDT"]
[Termination "ChessMavenYeti won by resignation"]

1. d4 {[%clk 0:03:01.9]} 1... Nf6 {[%clk 0:03:00.5]} 2. c4 {[%clk 0:03:02.5]}
2... g6 {[%clk 0:03:01.9]} 3. Nc3 {[%clk 0:03:02.8]} 3... Bg7 {[%clk 0:03:03.3]}
4. e4 {[%clk 0:03:03.5]} 4... d6 {[%clk 0:03:04.9]} 5. Nf3 {[%clk 0:03:04.7]}
5... O-O {[%clk 0:03:06.3]} 6. Be2 {[%clk 0:03:05.6]} 6... Na6 {[%clk
0:03:07.5]} 7. O-O {[%clk 0:03:06.1]} 7... e5 {[%clk 0:03:09.1]} 8. Be3 {[%clk
0:03:07.4]} 8... Ng4 {[%clk 0:03:09.7]} 9. Bg5 {[%clk 0:03:08.5]} 9... Qe8
{[%clk 0:03:11.2]} 10. dxe5 {[%clk 0:03:09.9]} 10... dxe5 {[%clk 0:03:12.2]} 11.
c5 {[%clk 0:03:11.3]} 11... Nxc5 {[%clk 0:02:58]} 12. Nd5 {[%clk 0:03:09.6]}
12... Ne6 {[%clk 0:02:58.6]} 13. Be7 {[%clk 0:03:10.5]} 13... c6 {[%clk
0:02:54.8]} 14. Bxf8 {[%clk 0:03:11.7]} 14... Qxf8 {[%clk 0:02:52.9]} 15. Nc3
{[%clk 0:03:09]} 15... Nh6 {[%clk 0:02:49]} 16. Re1 {[%clk 0:03:02.6]} 16... Kh8
{[%clk 0:02:42.3]} 17. Bf1 {[%clk 0:03:03.7]} 17... Nd4 {[%clk 0:02:21.2]} 18.
Nxd4 {[%clk 0:02:54.6]} 18... exd4 {[%clk 0:02:23.1]} 19. Ne2 {[%clk 0:02:55.2]}
19... c5 {[%clk 0:02:22.1]} 20. Nf4 {[%clk 0:02:56.3]} 20... Ng4 {[%clk
0:02:12.4]} 21. Qc2 {[%clk 0:02:49.3]} 21... Qd6 {[%clk 0:02:06.5]} 22. g3
{[%clk 0:02:49.3]} 22... Be5 {[%clk 0:02:05.4]} 23. Nd5 {[%clk 0:02:46.9]} 23...
Bg7 {[%clk 0:01:46.2]} 24. Rac1 {[%clk 0:02:44.6]} 24... b6 {[%clk 0:01:45.8]}
25. Bg2 {[%clk 0:02:39.8]} 25... Be6 {[%clk 0:01:45.1]} 26. h3 {[%clk
0:02:18.2]} 26... Nf6 {[%clk 0:01:42.9]} 27. e5 {[%clk 0:02:15.9]} 1-0